bitfinex/quotes_SOLUSD_20250928
["timestamp","ask_amount","ask_price","bid_price","bid_amount"]
[1759091223783,26.0,208.09,208.02,6.50331234]
[1759091223979,26.71,208.09,208.03,38.5]
[1759091224287,26.71,208.09,208.03,43.30699681]
[1759091224586,6.50331234,208.12,208.04,13.59559401]
[1759091224777,7.21331234,208.12,208.04,20.09890635]
[1759091225975,7.21331234,208.12,208.05,38.48]
[1759091226169,7.21331234,208.12,208.06,4.80630587]
[1759091226372,0.71,208.12,208.06,4.80630587]
[1759091226575,0.71,208.11,208.05,43.28650843]
[1759091226796,0.71,208.11,208.05,38.48]
[1759091226968,0.71,208.1,208.06,38.46]
[1759091227172,0.71,208.09,208.06,38.46]
[1759091227670,0.71,208.09,208.04,4.80670581]
[1759091227866,0.71,208.09,208.05,38.46]
[1759091228783,0.71,208.09,208.05,43.26651174]
[1759091229391,0.71,208.09,208.06,38.42]
[1759091230091,0.71,208.12,208.06,38.42]
[1759091230277,26.0,208.16,208.07,4.80607487]
[1759091230592,26.0,208.17,208.09,1.6594639]
[1759091230896,2.3694639,208.17,208.1,38.42]
[1759091231389,0.71,208.16,208.1,38.42]
[1759091231985,0.71,208.16,208.09,1.6594639]
[1759091232195,0.71,208.16,208.11,38.42]
[1759091232396,0.71,208.15,208.12,38.4]
[1759091232598,0.71,208.18,208.12,38.4]
[1759091232798,0.1,208.19,208.12,38.4]
[1759091232799,0.1,208.19,208.13,1.6594639]
[1759091233303,0.1,208.19,208.14,38.42]
[1759091233476,0.1,208.19,208.13,1.6594639]
[1759091233677,0.1,208.19,208.14,38.42]
[1759091234203,0.1,208.19,208.15,38.4]
[1759091234501,0.1,208.19,208.16,38.4]
[1759091234702,0.1,208.19,208.14,4.80439231]
[1759091234882,0.71,208.18,208.15,38.4]
[1759091235088,1.6594639,208.16,208.09,13.59559401]
[1759091235289,0.71,208.15,208.09,13.59559401]
[1759091235478,0.71,208.15,208.1,38.4]
[1759091235678,0.71,208.15,208.11,38.4]
[1759091236182,1.6594639,208.16,208.11,38.4]
[1759091236404,2.3694639,208.14,208.06,1.6594639]
[1759091236698,2.3694639,208.14,208.07,36.16]
[1759091236699,0.71,208.13,208.07,36.16]
[1759091237397,0.71,208.13,208.06,13.59559401]
[1759091237603,0.71,208.13,208.08,38.4]
[1759091237983,0.71,208.13,208.06,18.4016805]
[1759091238193,0.71,208.13,208.09,38.4]
[1759091239411,26.1,208.19,208.1,38.36]
[1759091239591,2.3694639,208.17,208.11,38.36]
[1759091240297,2.3694639,208.17,208.12,38.38]
[1759091240503,0.71,208.16,208.12,38.38]
[1759091241923,1.6594639,208.17,208.12,38.38]
[1759091242110,0.69,208.17,208.12,38.38]
[1759091242698,0.69,208.17,208.12,40.0394639]
[1759091243386,0.1,208.19,208.12,40.0394639]
[1759091243602,0.1,208.19,208.13,1.6594639]
[1759091243784,0.1,208.19,208.14,38.34]
[1759091243987,0.79,208.19,208.13,1.6594639]
[1759091244186,0.79,208.19,208.15,38.34]
[1759091244387,0.79,208.19,208.16,38.32]
[1759091244905,0.1,208.19,208.16,38.32]
[1759091245201,0.1,208.19,208.13,1.6594639]
[1759091245404,0.1,208.19,208.17,38.32]
[1759091245996,0.79,208.19,208.17,38.32]
[1759091246785,0.1,208.19,208.17,38.32]
[1759091249313,0.1,208.19,208.17,39.9794639]
[1759091249506,0.1,208.19,208.17,38.32]
[1759091249684,0.1,208.19,208.17,39.9794639]
[1759091250999,0.1,208.19,208.17,44.78321318]
[1759091251521,0.1,208.19,208.18,13.59559401]
[1759091251686,0.1,208.19,208.18,53.67505791]
[1759091253311,0.1,208.19,208.18,58.45859331]
[1759091253996,0.1,208.19,208.18,20.05859331]
[1759091254203,0.1,208.19,208.18,51.97559401]
[1759091254412,0.1,208.19,208.18,53.63505791]
[1759091254798,0.1,208.19,208.18,15.25505791]
[1759091255206,0.1,208.19,208.18,58.45859331]
[1759091255806,0.1,208.19,208.18,58.43859331]
[1759091255994,0.1,208.19,208.18,15.25505791]
[1759091256198,0.1,208.19,208.18,53.63505791]
[1759091256417,0.79,208.19,208.14,4.80438367]
[1759091256709,0.79,208.19,208.17,13.59559401]
[1759091256710,0.1,208.19,208.17,13.59559401]
[1759091256939,0.1,208.19,208.18,38.38]
[1759091257220,0.1,208.19,208.18,44.8429993]
[1759091257516,0.1,208.19,208.18,18.39912941]
[1759091257812,0.1,208.19,208.18,58.43859331]
[1759091258010,0.1,208.19,208.18,56.77912941]
[1759091258206,0.1,208.19,208.18,58.43859331]
[1759091261119,0.79,208.19,208.16,4.80391199]
[1759091261303,0.69,208.18,208.17,38.4]
[1759091263205,0.69,208.18,208.17,4.80376615]
[1759091263419,0.69,208.18,208.17,43.18376615]
[1759091264403,0.69,208.18,208.16,4.80399692]
[1759091264619,0.69,208.18,208.17,38.36]
[1759091265208,0.69,208.18,208.16,4.80399692]
[1759091265411,0.69,208.18,208.17,38.36]
[1759091266608,0.69,208.18,208.16,4.80399692]
[1759091266814,0.69,208.18,208.17,38.32]
[1759091268833,0.69,208.18,208.17,43.12376615]
[1759091270418,0.1,208.19,208.17,43.12376615]
[1759091270630,0.8,208.19,208.17,43.12376615]
[1759091270926,0.7,208.18,208.17,43.12376615]
[1759091271723,0.1,208.19,208.17,44.78323005]
[1759091272330,0.1,208.19,208.18,13.59559401]
[1759091272718,0.7,208.25,208.18,13.59559401]
[1759091272923,0.7,208.25,208.23,4.80238198]
[1759091273125,0.7,208.25,208.24,38.24]
[1759091275033,0.7,208.25,208.23,4.80238198]
[1759091275228,1.6594639,208.26,208.24,38.22]
[1759091275715,0.7,208.25,208.24,38.22]
[1759091276040,0.7,208.25,208.2,16.81075887]
[1759091276242,0.7,208.24,208.21,38.2]
[1759091276434,0.7,208.23,208.21,38.2]
[1759091277326,0.7,208.23,208.22,38.2]
[1759091277528,0.7,208.23,208.2,16.81075887]
[1759091277735,0.7,208.23,208.21,38.18]
[1759091278437,0.7,208.23,208.22,4.80261262]
[1759091278622,0.7,208.23,208.22,42.96261262]
[1759091279526,0.7,208.23,208.22,4.80261262]
[1759091279841,0.7,208.25,208.22,42.94261262]
[1759091280042,0.7,208.24,208.22,42.94261262]
[1759091280246,0.7,208.24,208.2,16.81075887]
[1759091280541,0.7,208.24,208.21,38.14]
[1759091281534,0.7,208.23,208.21,38.14]
[1759091282036,0.7,208.25,208.2,18.47022277]
[1759091282250,0.7,208.24,208.21,38.12]
[1759091282547,0.7,208.24,208.22,42.92261262]
[1759091284228,0.7,208.27,208.22,54.92914417]
[1759091284427,0.7,208.26,208.22,18.46860807]
[1759091284644,0.7,208.26,208.23,38.1]
[1759091285139,0.8,208.29,208.23,38.1]
[1759091285340,0.8,208.29,208.22,16.80914417]
[1759091285341,2.3594639,208.26,208.22,4.80261262]
[1759091285641,0.7,208.25,208.23,38.12]
[1759091285949,0.7,208.24,208.23,38.12]
[1759091286518,0.7,208.24,208.18,79.3]
[1759091286747,0.7,208.24,208.17,16.18485202]
[1759091286748,0.7,208.23,208.19,38.12]
[1759091286924,0.7,208.22,208.2,38.12]
[1759091287123,0.7,208.21,208.2,38.12]
[1759091288242,0.7,208.21,208.17,4.80376615]
[1759091288442,2.58925801,208.24,208.18,38.1]
[1759091288643,2.58925801,208.24,208.17,16.81318153]
[1759091288951,0.7,208.23,208.19,38.1]
[1759091289146,0.7,208.22,208.19,38.1]
[1759091289337,0.7,208.21,208.19,38.1]
[1759091289649,0.7,208.21,208.2,38.08]
[1759091290248,0.7,208.21,208.2,42.88307396]
[1759091291524,0.7,208.21,208.2,38.08]
[1759091291829,0.7,208.21,208.2,38.06]
[1759091294252,0.7,208.21,208.07,24.02950641]
[1759091294430,0.65,208.2,208.14,2.58925801]
[1759091294748,0.65,208.19,208.15,38.04]
[1759091294939,0.65,208.18,208.15,38.04]
[1759091295136,0.65,208.17,208.14,2.58925801]
[1759091295452,0.65,208.16,208.15,38.04]
[1759091296040,0.65,208.16,208.15,38.02]
[1759091296346,2.58925801,208.24,208.16,4.80399692]
[1759091296549,0.65,208.23,208.19,2.58925801]
[1759091296735,0.65,208.23,208.2,40.60925801]
[1759091297442,0.65,208.25,208.2,40.60925801]
[1759091297635,0.65,208.24,208.2,40.60925801]
[1759091298038,0.65,208.23,208.2,40.60925801]
[1759091298758,0.65,208.23,208.21,4.80284328]
[1759091299128,26.0,208.27,208.21,4.80284328]
[1759091299325,0.65,208.26,208.21,4.80284328]
[1759091299555,0.65,208.25,208.21,7.39210129]
[1759091299757,0.65,208.24,208.21,7.39210129]
[1759091300051,0.65,208.23,208.21,7.39210129]
[1759091300839,0.71,208.22,208.21,7.39210129]
[1759091301155,0.71,208.22,208.21,2.58925801]
[1759091301456,0.71,208.22,208.21,7.39210129]
[1759091302554,0.71,208.22,208.21,4.80284328]
[1759091302750,26.0,208.27,208.21,16.80995148]
[1759091302956,0.1,208.29,208.21,19.39920949]
[1759091303144,0.71,208.26,208.21,19.39920949]
[1759091303353,0.71,208.25,208.21,19.39920949]
[1759091305044,0.71,208.25,208.23,4.80238198]
[1759091306655,26.71,208.27,208.23,4.80238198]
[1759091306839,0.71,208.26,208.23,4.80238198]
[1759091307638,0.1,208.29,208.25,2.58925801]
[1759091307839,0.1,208.29,208.26,37.96]
[1759091308141,0.1,208.29,208.25,2.58925801]
[1759091308349,0.1,208.29,208.26,37.98]
[1759091308743,0.1,208.29,208.26,40.56925801]
[1759091308945,25.81,208.31,208.26,40.56925801]
[1759091309246,25.81,208.31,208.27,4.80145964]
[1759091309456,25.81,208.31,208.26,4.80166534]
[1759091309664,25.81,208.31,208.28,37.98]
[1759091310865,25.81,208.31,208.22,0.71]
[1759091311050,0.71,208.3,208.24,4.80215136]
[1759091311244,0.71,208.29,208.24,4.80215136]
[1759091311452,0.71,208.28,208.24,4.80215136]
[1759091311760,28.58925801,208.3,208.25,3.29925801]
[1759091311761,26.0,208.3,208.25,3.29925801]
[1759091311962,0.71,208.29,208.25,2.58925801]
[1759091312259,0.71,208.28,208.24,37.98]
[1759091312467,0.71,208.27,208.24,37.98]
[1759091313159,3.29925801,208.29,208.25,4.80192076]
[1759091313360,0.71,208.29,208.25,4.80192076]
[1759091313564,28.58925801,208.31,208.25,4.80192076]
[1759091313771,0.71,208.3,208.25,4.80192076]
[1759091313956,28.58925801,208.31,208.25,4.80192076]
[1759091314273,0.71,208.3,208.25,5.51192076]
[1759091314446,28.58925801,208.31,208.25,5.51192076]
[1759091314652,0.71,208.29,208.25,5.51192076]
[1759091314851,0.71,208.29,208.25,4.80192076]
[1759091315369,26.0,208.3,208.25,5.51192076]
[1759091315577,26.71,208.3,208.25,5.51192076]
[1759091315766,26.71,208.3,208.23,14.59498921]
[1759091315767,0.71,208.29,208.26,37.96]
[1759091316071,0.71,208.28,208.26,37.96]
[1759091317461,0.71,208.28,208.23,4.80238198]
[1759091317774,0.71,208.28,208.24,37.94]
[1759091318151,0.71,208.27,208.23,4.80238198]
[1759091318351,0.71,208.27,208.25,37.94]
[1759091318770,2.58925801,208.29,208.25,37.94]
[1759091318771,26.0,208.28,208.25,37.94]
[1759091318971,0.71,208.26,208.2,4.80294378]
[1759091319273,0.71,208.25,208.2,4.80294378]
[1759091319570,0.71,208.24,208.21,37.92]
[1759091320557,26.71,208.26,208.21,42.72283138]
[1759091321274,26.71,208.26,208.22,37.9]
[1759091321460,0.71,208.26,208.22,37.9]
[1759091321967,0.71,208.3,208.23,3.29925801]
[1759091322148,0.71,208.3,208.24,37.9]
[1759091322463,26.0,208.29,208.26,4.80169019]
[1759091322785,26.0,208.29,208.27,37.9]
[1759091323353,26.71,208.29,208.27,37.9]
[1759091323672,26.71,208.29,208.27,37.92]
[1759091324869,26.0,208.29,208.27,37.92]
[1759091327353,2.58925801,208.3,208.27,43.43141421]
[1759091327972,3.29925801,208.3,208.27,37.92]
[1759091328575,2.58925801,208.3,208.27,37.92]
[1759091328761,28.58925801,208.31,208.27,42.72144168]
[1759091328956,29.29925801,208.31,208.27,4.80144168]
[1759091329266,0.71,208.3,208.28,37.84]
[1759091330169,0.71,208.3,208.26,4.80167472]
[1759091330372,0.71,208.3,208.27,37.84]
[1759091330753,28.58925801,208.31,208.27,37.84]
[1759091330962,0.72,208.3,208.27,37.84]
[1759091332000,3.30925801,208.3,208.27,37.84]
[1759091332155,3.30925801,208.3,208.25,5.48189078]
[1759091332362,3.30925801,208.3,208.26,38.48]
[1759091332562,3.30925801,208.3,208.27,37.8]
[1759091332961,0.72,208.29,208.28,37.8]
[1759091333157,2.58925801,208.29,208.28,37.8]
[1759091334961,2.58925801,208.29,208.27,37.78]
[1759091335579,2.58925801,208.29,208.27,37.76]
[1759091336877,0.72,208.28,208.22,0.68]
[1759091337053,2.58925801,208.26,208.23,37.76]
[1759091337258,2.58925801,208.26,208.23,38.44]
[1759091337667,2.58925801,208.26,208.24,0.68]
[1759091338060,2.58925801,208.26,208.23,37.76]
[1759091338594,0.72,208.3,208.24,38.42]
[1759091338793,2.58925801,208.28,208.24,38.42]
[1759091338961,2.58925801,208.28,208.24,37.74]
[1759091339155,2.58925801,208.28,208.25,37.76]
[1759091339972,2.58925801,208.26,208.24,37.76]
[1759091340288,29.30925801,208.26,208.24,37.76]
[1759091340582,28.58925801,208.26,208.24,37.76]
[1759091340877,26.0,208.24,208.15,16.18485202]
[1759091341082,2.58925801,208.21,208.17,0.68]
[1759091341392,2.58925801,208.19,208.14,0.68]
[1759091341600,2.58925801,208.19,208.15,37.74]
[1759091341899,3.30925801,208.19,208.15,38.42]
[1759091342074,2.58925801,208.18,208.15,37.74]
[1759091342277,2.58925801,208.18,208.16,0.68]
[1759091342676,2.58925801,208.19,208.16,0.68]
[1759091343383,2.58925801,208.19,208.15,37.74]
[1759091343586,2.58925801,208.19,208.15,38.42]
[1759091344870,3.30925801,208.19,208.15,38.42]
[1759091345472,2.58925801,208.17,208.15,37.74]
[1759091345669,2.58925801,208.17,208.12,0.68]
[1759091345985,2.58925801,208.14,208.1,0.68]
[1759091346282,2.58925801,208.14,208.11,0.68]
[1759091346790,2.58925801,208.14,208.12,0.68]
[1759091347001,2.58925801,208.14,208.1,38.4]
[1759091347166,2.58925801,208.12,208.1,37.72]
[1759091347480,2.58925801,208.12,208.09,37.74]
[1759091347681,3.30925801,208.12,208.09,37.74]
[1759091348484,1.6594067,208.11,208.09,37.74]
[1759091349984,28.3794067,208.11,208.06,37.74]
[1759091350183,1.6594067,208.09,208.06,38.42]
[1759091350570,1.6594067,208.09,208.06,0.68]
[1759091350770,1.6594067,208.09,208.06,38.42]
[1759091350973,1.6594067,208.09,208.05,0.2]
[1759091351279,1.6594067,208.07,208.05,38.6]
[1759091351478,0.71,208.13,208.06,0.71]
[1759091351789,1.6594067,208.11,208.06,0.71]
[1759091351991,27.6594067,208.09,208.05,37.92]
[1759091352202,1.6594067,208.08,208.05,0.2]
[1759091352497,26.0,208.09,208.05,0.91]
[1759091352678,1.6594067,208.08,208.05,0.91]
[1759091353095,27.6594067,208.08,208.05,0.2]
[1759091353397,1.6594067,208.06,208.05,0.2]
[1759091354409,28.3694067,208.06,208.05,0.2]
[1759091355077,2.3694067,208.06,208.05,0.2]
[1759091355392,4.29790753,208.06,208.05,0.2]
[1759091356572,6.06006604,208.1,208.05,0.91]
[1759091356573,0.71,208.1,208.05,0.91]
[1759091356772,1.6594067,208.08,208.05,0.2]
[1759091356987,1.6594067,208.06,208.05,0.2]
[1759091357198,0.71,208.07,208.05,0.2]
[1759091357518,2.6383149,208.07,208.05,0.2]
[1759091358102,1.6594067,208.07,208.05,0.2]
[1759091358390,1.6594067,208.07,208.05,0.91]
[1759091358579,1.6594067,208.07,208.05,0.2]
[1759091359683,0.71,208.06,208.05,0.2]
[1759091360601,4.80748237,208.07,208.05,0.89]
[1759091360773,1.6594067,208.14,208.06,1.6594067]
[1759091360968,26.0,208.11,208.07,38.61]
[1759091361199,26.0,208.11,208.08,0.69]
[1759091361391,26.0,208.11,208.07,37.92]
[1759091361392,26.67,208.11,208.05,0.89]
[1759091361597,0.67,208.11,208.06,37.94]
[1759091361792,26.67,208.11,208.06,37.94]
[1759091362092,26.67,208.11,208.06,38.63]
[1759091363375,26.67,208.11,208.06,43.43624095]
[1759091363700,26.67,208.11,208.06,38.63]
[1759091363897,0.67,208.1,208.05,38.12]
[1759091364198,0.67,208.1,208.05,38.79]
[1759091364585,0.67,208.1,208.05,38.1]
[1759091364986,0.67,208.1,208.05,38.79]
[1759091366978,0.67,208.1,208.05,0.89]
[1759091367179,0.67,208.1,208.06,37.88]
[1759091367488,0.67,208.09,208.06,37.88]
[1759091367690,2.3294067,208.1,208.06,37.88]
[1759091367991,0.67,208.1,208.06,37.88]
[1759091368601,0.67,208.1,208.05,38.06]
[1759091369281,0.67,208.1,208.05,0.89]
[1759091369527,0.67,208.1,208.05,38.75]
[1759091371900,0.67,208.09,208.05,38.75]
[1759091372091,1.6594067,208.11,208.05,38.75]
[1759091372405,2.3294067,208.11,208.05,38.71]
[1759091373484,0.67,208.1,208.05,0.89]
[1759091373785,1.6594067,208.1,208.06,38.49]
[1759091374299,2.3294067,208.1,208.06,37.8]
[1759091374602,1.6594067,208.08,208.05,0.2]
[1759091374804,1.6594067,208.06,208.05,0.2]
[1759091375006,2.3294067,208.06,208.05,0.2]
[1759091376008,26.0,208.09,208.05,0.2]
[1759091376211,0.67,208.08,208.05,0.2]
[1759091376506,0.67,208.07,208.05,0.2]
[1759091380502,26.0,208.09,208.05,0.2]
[1759091380697,0.67,208.08,208.05,0.2]
[1759091381014,0.67,208.07,208.05,0.2]
[1759091381206,26.0,208.09,208.05,0.2]
[1759091381406,0.67,208.06,208.05,0.2]
[1759091382111,26.0,208.09,208.05,0.2]
[1759091382112,0.67,208.08,208.05,0.2]
[1759091382317,0.67,208.07,208.05,0.2]
[1759091382495,26.0,208.08,208.05,0.2]
[1759091382695,26.67,208.08,208.05,0.2]
[1759091384222,26.0,208.08,208.05,0.2]
[1759091384536,0.67,208.07,208.05,0.2]
[1759091384715,0.67,208.06,208.05,0.2]
[1759091390223,26.67,208.08,208.05,0.2]
[1759091390596,0.7,208.07,208.05,0.2]
[1759091391119,1.6594067,208.06,208.05,0.2]
[1759091391310,2.3594067,208.06,208.05,0.2]
[1759091392325,26.0,208.03,207.98,0.2]
[1759091392512,1.6594067,207.99,207.98,0.92]
[1759091394021,0.7,208.06,207.98,0.92]
[1759091394222,0.7,208.06,207.99,0.72]
[1759091394421,1.6594067,208.04,207.99,0.72]
[1759091394604,1.6594067,208.04,208.0,0.72]
[1759091395006,0.7,208.03,207.98,0.92]
[1759091395203,2.3594067,208.03,207.98,0.92]
[1759091397632,0.7,208.03,207.99,0.72]
[1759091401337,6.06006604,208.13,208.02,1.6594067]
[1759091401536,1.6594067,208.12,208.04,1.6594067]
[1759091401736,0.7,208.13,208.06,1.6594067]
[1759091402037,0.7,208.12,208.06,1.6594067]
[1759091402236,0.7,208.12,208.04,1.6594067]
[1759091402440,0.7,208.12,208.05,0.72]
[1759091402610,1.6594067,208.09,208.03,37.7]
[1759091402813,1.6594067,208.07,208.03,37.7]
[1759091403018,1.6594067,208.07,208.0,1.6594067]
[1759091403019,0.7,208.06,208.0,1.6594067]
[1759091403419,1.6594067,208.08,208.0,1.6594067]
[1759091403641,26.0,208.09,207.98,0.2]
[1759091403642,0.7,208.05,207.98,0.2]
[1759091403822,1.6594067,208.02,207.98,0.2]
[1759091404138,1.6594067,208.0,207.98,0.2]
[1759091404340,1.6594067,208.02,207.98,0.2]
[1759091404529,1.6594067,208.02,207.98,0.92]
[1759091404929,2.3594067,208.02,207.98,0.92]
[1759091405135,2.3594067,208.02,207.98,0.2]
[1759091405529,1.6594067,208.02,207.98,0.2]
[1759091405734,1.6594067,208.0,207.98,0.2]
[1759091405939,1.6594067,207.99,207.98,0.2]
[1759091407143,2.3594067,207.99,207.98,0.2]
[1759091409031,28.3594067,207.99,207.98,0.2]
[1759091409229,26.0,207.99,207.98,0.2]
[1759091409432,1.6594067,208.01,207.98,0.92]
[1759091409623,26.0,208.01,207.99,0.72]
[1759091409823,26.0,208.01,207.98,0.2]
[1759091410230,2.59496663,208.02,207.98,0.2]
[1759091410431,3.29512894,208.02,207.98,0.2]
[1759091410633,26.0,208.01,207.98,0.2]
[1759091411328,28.59512894,208.01,207.98,0.2]
[1759091411535,28.59512894,208.01,207.98,0.92]
[1759091411725,26.0,208.01,207.98,0.92]
[1759091411928,26.0,208.01,207.98,0.2]
[1759091412747,2.59512894,208.0,207.98,0.2]
[1759091413725,0.7,208.09,207.99,0.72]
[1759091413948,0.7,208.11,208.0,37.82]
[1759091414153,0.7,208.11,208.01,0.72]
[1759091414154,2.59512894,208.1,208.01,0.72]
[1759091414530,0.7,208.11,208.01,0.72]
[1759091414852,2.59512894,208.11,208.01,38.54]
[1759091415023,2.59512894,208.11,208.02,5.52723007]
[1759091415234,0.7,208.14,208.04,13.59559401]
[1759091415450,3.29512894,208.13,208.05,0.72]
[1759091415751,2.59512894,208.11,208.05,0.72]
[1759091416130,2.59512894,208.06,207.99,18.40339832]
[1759091416324,2.59512894,208.02,208.01,0.72]
[1759091416546,2.59512894,208.02,207.99,0.72]
[1759091416866,2.59512894,208.0,207.98,0.2]
[1759091417041,2.59512894,208.0,207.99,0.72]
[1759091417544,0.7,208.06,207.99,0.72]
[1759091417847,2.59512894,208.0,207.99,0.72]
[1759091418058,2.59512894,208.0,207.98,0.2]
[1759091418346,26.7,207.99,207.98,0.2]
[1759091418934,2.59512894,207.99,207.98,0.2]
[1759091419131,3.29512894,208.01,207.98,0.2]
[1759091419470,2.59512894,207.99,207.98,0.2]
[1759091419749,26.0,208.03,207.98,0.2]
[1759091420055,26.0,208.03,207.99,0.72]
[1759091420222,0.7,208.05,207.99,0.72]
[1759091420626,0.7,208.05,207.98,0.2]
[1759091421348,2.59512894,207.99,207.98,0.2]
[1759091421561,29.29512894,207.99,207.98,0.2]
[1759091421764,2.59512894,207.97,207.96,0.2]
[1759091422250,3.29512894,207.97,207.96,0.2]
[1759091422762,2.59512894,207.97,207.96,0.2]
[1759091425457,3.29512894,207.97,207.96,0.2]
[1759091426652,3.29512894,207.97,207.89,0.2]
[1759091426849,2.59512894,207.9,207.89,0.2]
[1759091427059,0.7,207.97,207.89,0.86]
[1759091427266,2.59512894,207.91,207.89,0.86]
[1759091427442,2.59512894,207.91,207.9,0.66]
[1759091428338,2.59512894,207.91,207.89,0.2]
[1759091429841,0.7,207.93,207.89,0.2]
[1759091430051,2.59512894,207.9,207.89,0.2]
[1759091430757,3.29512894,207.9,207.89,0.2]
[1759091431648,26.0,207.93,207.89,0.2]
[1759091431858,2.59512894,207.91,207.89,5.01013979]
[1759091432658,2.59512894,207.91,207.89,0.2]
[1759091433052,2.59512894,207.93,207.9,0.66]
[1759091433255,2.59512894,207.96,207.91,0.66]
[1759091433464,2.59512894,207.97,207.93,4.80931082]
[1759091433762,2.59512894,207.95,207.9,0.66]
[1759091434154,2.59512894,207.95,207.9,4.80977525]
[1759091434363,2.59512894,207.96,207.91,0.66]
[1759091434545,2.59512894,207.93,207.89,0.2]
[1759091434739,2.59512894,207.93,207.89,5.01020508]
[1759091435043,2.59512894,207.91,207.89,5.01020508]
[1759091435243,0.7,207.96,207.89,5.01020508]
[1759091435548,2.59512894,207.94,207.89,5.01020508]
[1759091435745,3.29512894,207.94,207.89,5.01020508]
[1759091436579,13.59559401,207.97,207.9,0.66]
[1759091436742,2.59512894,207.93,207.89,5.01020508]
[1759091437971,2.59512894,207.91,207.89,0.2]
[1759091438448,42.89072295,207.9,207.89,0.2]
[1759091439367,0.7,207.9,207.89,0.2]
[1759091439557,29.29512894,207.9,207.89,0.2]
[1759091440270,33.2183747,207.9,207.89,0.2]
[1759091441863,46.81396871,207.9,207.89,0.2]
[1759091445570,46.81396871,207.9,207.84,0.2]
[1759091445778,20.11396871,207.85,207.84,0.2]
[1759091446280,20.81396871,207.85,207.84,0.2]
[1759091446455,27.33234341,207.85,207.84,0.2]
[1759091446650,65.31234341,207.85,207.84,0.2]
[1759091446855,70.1235053,207.85,207.84,0.2]
[1759091447149,65.31234341,207.85,207.84,0.2]
[1759091447982,26.0,207.82,207.81,0.2]
[1759091448175,46.11396871,207.82,207.81,0.2]
[1759091448477,84.79396871,207.82,207.81,0.2]
[1759091448681,46.81396871,207.82,207.81,0.2]
[1759091449590,84.81396871,207.82,207.81,0.2]
[1759091449778,46.11396871,207.78,207.77,0.2]
[1759091450169,46.81396871,207.78,207.77,0.2]
[1759091452687,46.81396871,207.78,207.7,0.2]
[1759091452688,51.62675146,207.78,207.7,0.2]
[1759091452857,26.0,207.71,207.7,0.2]
[1759091453062,32.5183747,207.71,207.7,0.2]
[1759091453577,6.5183747,207.71,207.7,0.86]
[1759091454291,26.0,207.74,207.7,0.86]
[1759091454491,26.0,207.74,207.7,0.2]
[1759091454659,6.5183747,207.71,207.7,0.2]
[1759091454859,26.0,207.74,207.7,0.2]
[1759091455060,6.5183747,207.71,207.7,0.86]
[1759091455602,6.5183747,207.71,207.7,0.2]
[1759091456268,7.1883747,207.71,207.7,0.2]
[1759091456571,6.5183747,207.71,207.7,0.2]
[1759091457272,14.26559401,207.73,207.7,0.2]
[1759091457471,6.5183747,207.71,207.7,0.2]
[1759091457874,26.67,207.73,207.7,0.2]